Cogmind - Beta 16 @@@ ROGUE MODE // 2026.01.01 @ 01:05:46 Player: telemetry Result: Destroyed by G-67 Veteran with Field Laser Performance ------------- Evolutions (7) 3500 Regions Visited (18) 3600 Robots Destroyed (240) 1200 Value Destroyed (8460) 8460 Prototype IDs (16) 320 Alien Tech Used (0) 0 Bonus (6753) 6753 TOTAL SCORE: 23833 Bonus ------- High Alert Combat Kills 607 Follower Combat Kills 2477 Entered DSFs 500 Network Hubs Disabled 200 Built Enhanced Grunts 300 Met R17 at Cetus 500 Met R17 at Research 2000 Scanned by Researcher 500 Friendly Fire -331 Cogmind --------- Core Integrity 0/1300 Matter 242/300 Energy 72/100 System Corruption 14% Temperature Hot (292) Movement Core (50) Location -3/Testing Parts ------- > --- POWER (2) -------- (None) > --- PROPULSION (6) --- (None) > --- UTILITY (8) ------ (None) > --- WEAPON (5) ------- (None) > --- INVENTORY (5) ---- Light Antimatter Reactor Medium Treads Enhanced Biometal Leg Peak State ------------ > --- POWER ------------ Particle Reactor Micro Antimatter Reactor > --- PROPULSION ------- Improved Antigrav System Improved Linear Gravjet Antigrav Array Antigrav Array > --- UTILITY ---------- Experimental Heat Sink Advanced Energy Well Advanced Signal Interpreter Advanced Targeting Computer Heavy Armor Plating Layered Light Armor Plating Advanced Shield Generator > --- WEAPON ----------- Heavy Machine Gun Heavy Machine Gun Railgun Linear Accelerator > --- INVENTORY -------- Light Antimatter Reactor Medium Treads Enhanced Biometal Leg [Rating: 128] Favorites ----------- Power Micro Antimatter Reactor Engine Ion Engine Power Core Micro Nuclear Core Reactor Micro Antimatter Reactor Propulsion Medium Treads Treads Medium Treads Leg Aluminum Leg Wheel Wheel Hover Unit Improved Antigrav System Flight Unit Xenon Bombardment Thruster Utility Transmission Jammer Device Transmission Jammer Storage Huge Storage Unit Processor Core Analyzer Protection Hardened Medium Armor Plating Weapon Heavy Battle Rifle Energy Gun Small Laser Ballistic Gun Heavy Battle Rifle Ballistic Cannon Mass Driver Impact Weapon Heavy Hammer Build | -11 -10 -9 -8 -7 -7 -7 -6 -6 -6 -5 -5 -5 -5 -5 -4 -4 -3 -3 ------- Run | Yrd Mat Mat Mat Fac Was Fac Fac Was Fac Fac Ext Cet Arc Hub Fac DSF Res Tes Slots Evolved 14 | . . 2 2 2 . . 2 . . 2 . . . . 2 . 2 . Power 1 | . . . . . . . 1 . . . . . . . . . . . Propulsion 4 | . . 1 1 . . . . . . 1 . . . . 1 . . . Utility 6 | . . 1 . 2 . . 1 . . . . . . . 1 . 1 . Weapon 3 | . . . 1 . . . . . . 1 . . . . . . 1 . Parts Attached 204 | 7 7 33 16 17 1 16 3 9 6 . 11 6 6 15 8 4 38 1 Power 31 | 2 . 7 2 2 . 2 1 2 . . 2 . 2 2 1 . 6 . Engine 12 | 2 . 7 . . . 2 . . . . 1 . . . . . . . Core 7 | . . . 2 2 . . 1 . . . . . . 2 . . . . Reactor 12 | . . . . . . . . 2 . . 1 . 2 . 1 . 6 . Propulsion 66 | 2 2 13 7 4 1 5 . 2 2 . 3 . 2 7 1 2 13 . Treads 40 | 2 . 3 7 4 1 5 . 2 2 . 3 . 2 5 . 2 2 . Leg 12 | . 2 9 . . . . . . . . . . . . 1 . . . Wheel 3 | . . 1 . . . . . . . . . . . 2 . . . . Hover 5 | . . . . . . . . . . . . . . . . . 5 . Flight 6 | . . . . . . . . . . . . . . . . . 6 . Utility 61 | 1 4 9 2 8 . 6 2 2 3 . 2 4 1 1 5 1 9 1 Device 18 | . 1 1 . 1 . 2 1 . 1 . . 1 . 1 4 1 4 . Storage 8 | 1 2 2 . . . . . . . . . . . . . . 2 1 Processor 10 | . 1 2 1 1 . 1 1 . 1 . . . . . 1 . 1 . Hackware . | . . . . . . . . . . . . . . . . . . . Protection 25 | . . 4 1 6 . 3 . 2 1 . 2 3 1 . . . 2 . Artifact . | . . . . . . . . . . . . . . . . . . . Weapon 46 | 2 1 4 5 3 . 3 . 3 1 . 4 2 1 5 1 1 10 . Energy Gun 4 | . . 1 . . . . . . . . . . . . . . 3 . Energy Cannon . | . . . . . . . . . . . . . . . . . . . Ballistic Gun 25 | 2 1 2 3 1 . 3 . 2 1 . 3 2 1 . . . 4 . Ballistic Cannon 16 | . . . 2 2 . . . 1 . . 1 . . 5 1 1 3 . Launcher . | . . . . . . . . . . . . . . . . . . . Special Weapon . | . . . . . . . . . . . . . . . . . . . Impact Weapon 1 | . . 1 . . . . . . . . . . . . . . . . Slashing Weapon . | . . . . . . . . . . . . . . . . . . . Piercing Weapon . | . . . . . . . . . . . . . . . . . . . Special Melee Weapon . | . . . . . . . . . . . . . . . . . . . Unidentified Prototypes 10 | . . . 1 . . . . . 1 . . 2 . 2 2 . 1 1 Corrupted Parts 6 | . . . . . . . . . . . . 1 . 3 . . 2 . System Corruption 37 | . . . . . . . . . . . . 9 . 17 . . 11 . Parts Lost 85 | . . 11 2 4 6 . . 2 . . 1 1 1 20 . 3 22 12 Power 10 | . . 2 . . . . . 1 . . . . . 2 . . 4 1 Propulsion 25 | . . 4 1 . 3 . . 1 . . . 1 . 7 . . 6 2 Utility 25 | . . 2 1 2 2 . . . . . 1 . 1 6 . 1 4 5 Weapon 25 | . . 3 . 2 1 . . . . . . . . 5 . 2 8 4 Highest Loss Streak 13 | . . 5 2 1 6 . . 2 . . 1 1 1 13 . 2 12 12 To Critical Strikes 3 | . . . . . . . . . . . . 1 . 1 . . 1 . Average Backups 9 | . 8 10 16 23 17 4 3 4 3 3 3 3 2 3 1 3 4 3 Power . | . 1 1 . . . 1 . . . . . . . . . . . 1 Propulsion 1 | . . . . 2 1 . . . . 1 1 1 2 1 . . . 2 Utility 5 | . 6 8 11 13 11 3 3 2 2 2 1 . . 1 1 1 1 . Weapon 1 | . . . 3 6 3 . . . 1 . . . . 1 . 1 1 . Tool/Special . | . . . . . . . . . . . . . . . . . . . Unused Backups 31 | . 1 2 3 1 14 2 . 2 . . . 2 . 2 . 1 . 1 Power 3 | . 1 . . . 1 1 . . . . . . . . . . . . Propulsion 2 | . . . 1 . . . . . . . . . . . . . . 1 Utility 16 | . . 2 . . 9 1 . 2 . . . 1 . . . 1 . . Weapon 10 | . . . 2 1 4 . . . . . . 1 . 2 . . . . Tool/Special . | . . . . . . . . . . . . . . . . . . . Average Slot Usage (%) 90 | . 98 94 97 98 65 87 96 87 96 94 95 95 95 91 55 59 38 67 Engine 3 | . 14 10 5 . . 6 6 1 . . 1 . . . . . . . Core 2 | . . . 3 7 4 . 4 6 6 5 . . . . 5 5 . . Reactor 3 | . . . . . . . . 4 6 5 8 11 11 8 . . 3 8 Treads 21 | . 25 4 32 29 18 27 26 16 23 23 26 24 24 25 5 13 1 . Leg 3 | . 1 27 . . . . . . . . . . . . 3 . . . Device 6 | . 3 . . . . 9 11 13 13 11 11 12 12 10 11 16 3 9 Storage 4 | . 14 11 9 7 5 . . . . . . . . . . . . . Processor 9 | . 9 11 8 14 11 6 11 13 13 11 8 5 5 5 5 5 6 9 Protection 10 | . . 9 9 13 9 17 14 12 13 11 11 15 15 14 . . 1 6 Ballistic Gun 16 | . 27 11 19 14 9 18 20 18 20 23 22 17 17 11 . . 1 11 Ballistic Cannon 3 | . . . 7 7 4 . . . . . . 5 5 9 12 16 4 3 Peak Build Rating 128 | 6 8 15 39 50 50 44 44 67 73 77 89 103 114 114 88 113 126 128 Average Rating 51 | 4 7 13 29 47 32 36 42 47 67 77 80 99 110 98 69 105 56 95 On Entrance 56 | . 6 8 15 35 50 1 39 44 57 73 77 89 100 114 43 83 104 126 Avg Prop Armor Cover (%) 8 | . . 10 13 . . . . 4 11 . . . . 8 7 18 6 . Naked Turns 53 | . . . . . 27 17 . . . . . . . . . . . 9 Heaviest Build 110 | 13 19 91 103 110 104 38 42 44 44 47 67 69 86 92 54 65 83 83 Greatest Support 230 | 40 40 40 106 104 104 96 88 88 119 119 149 149 147 147 80 230 150 74 Greatest Overweight (x) 26 | 4 1 9 10 1 26 3 . . . . . . . 15 . . 9 1 Average Overweight (x) . | . . . 1 . . . . . . . . . . . . . . . Largest Inventory Capacity 25 | 8 10 25 25 25 25 5 5 5 5 5 5 5 5 5 5 5 5 5 Average Capacity 10 | 7 9 10 25 25 19 5 5 5 5 5 5 5 5 5 5 5 5 5 Most Carried 25 | 1 10 16 22 25 23 5 5 5 5 4 5 5 5 5 3 5 5 3 Average Carried 9 | . 8 9 16 23 17 4 3 4 4 4 4 4 4 4 1 3 4 3 Final Capacity 25 | 8 10 25 25 25 5 5 5 5 5 5 5 5 5 5 5 5 5 5 Final Carried 24 | 1 9 16 21 24 5 5 4 5 5 4 5 5 5 1 3 4 3 3 Class Distribution -------------------- 19% | Gunner 17% | Scavenger-Tank 17% | Tank 15% | Scavenger-Mutant 15% | Mutant 9% | Commander-Tank 4% | Scavenger-Gunner Dominant Class ---------------- Mutant | -10/Materials Scavenger-Mutant | -9/Materials Gunner | -8/Materials Gunner | -7/Factory Mutant | -7/Waste Scavenger-Tank | -7/Factory Scavenger-Tank | -6/Factory Tank | -6/Waste Tank | -6/Factory Tank | -5/Factory Commander-Tank | -5/Extension Commander-Tank | -5/Cetus Scavenger-Tank | -5/Archives Scavenger-Tank | -5/Hub_04(d) Scavenger-Tank | -4/Factory Tank | -4/DSF Mutant | -3/Research Scavenger-Tank | -3/Testing Resources | -11 -10 -9 -8 -7 -7 -7 -6 -6 -6 -5 -5 -5 -5 -5 -4 -4 -3 -3 ----------- Run | Yrd Mat Mat Mat Fac Was Fac Fac Was Fac Fac Ext Cet Arc Hub Fac DSF Res Tes Matter Collected 8433 | 131 600 583 917 1350 . 516 . 272 336 3 835 432 169 1347 . 152 790 . Remotely 65 | . 65 . . . . . . . . . . . . . . . . . Salvage Created 9595 | . 533 1371 1291 1600 . 516 . 184 328 . 1237 222 70 1371 . 158 599 115 Parts 476 | . 34 68 61 103 . 33 . . 16 . 58 6 4 58 . 4 27 4 Haulers Intercepted 13 | . 2 1 2 . . 1 . . . . . . . 6 . . 1 . Recyclers Shooed 13 | . 1 1 1 4 . 3 . . 1 . . . . 1 . . 1 . Parts Field Recycled . | . . . . . . . . . . . . . . . . . . . Retrieved Matter . | . . . . . . . . . . . . . . . . . . . Parts Self-Destructed . | . . . . . . . . . . . . . . . . . . . Prevented . | . . . . . . . . . . . . . . . . . . . Parts Restored . | . . . . . . . . . . . . . . . . . . . Kills | -11 -10 -9 -8 -7 -7 -7 -6 -6 -6 -5 -5 -5 -5 -5 -4 -4 -3 -3 ------- Run | Yrd Mat Mat Mat Fac Was Fac Fac Was Fac Fac Ext Cet Arc Hub Fac DSF Res Tes Combat Hostiles Destroyed 166 | . 12 28 24 34 . 9 . 1 6 . 17 4 1 12 . 5 11 2 Melee 4 | . . 2 . 1 . . . . . . . . . . . . 1 . Guns 107 | . 12 21 17 13 . 9 . 1 6 . 17 2 1 7 . . . 1 Cannons 46 | . . . 7 20 . . . . . . . 2 . 4 . 5 7 1 AOE 2 | . . . . . . . . . . . . . . . . . 2 . Classes Destroyed 20 | . 6 5 2 1 . 1 . 1 1 . 2 . . 1 . . . . Worker 19 | . . 2 1 6 . . . . . . . . . 9 . . 1 . Builder 12 | . 1 1 . 3 . 1 . . . . 2 . . 4 . . . . Tunneler 4 | . 1 1 . . . . . . . . . . . 1 . . 1 . Hauler 13 | . 2 1 2 . . 1 . . . . . . . 6 . . 1 . Recycler 13 | . 1 2 4 2 . . . . . . 1 . . 1 . . 2 . Operator 4 | . . 1 . 2 . . . . 1 . . . . . . . . . Watcher 6 | . . 1 2 1 . . . . . . 1 . . 1 . . . . Swarmer 33 | . 6 4 8 . . . . . . . . . . 4 . . 11 . Cutter 1 | . . . . . . . . . 1 . . . . . . . . . Grunt 71 | . 6 14 8 20 . 4 . . 4 . 9 2 . 2 . . . 2 Brawler 3 | . . . . . . 1 . . . . . . . 2 . . . . Duelist 2 | . . 1 . . . . . . . . . . . 1 . . . . Sentry 23 | . . 9 5 3 . 2 . . . . 3 . 1 . . . . . Specialist 4 | . . . . . . . . . . . . . . 2 . 2 . . Hunter 11 | . . . 2 6 . . . . . . 1 . . . . 2 . . Programmer 7 | . . . . 5 . 2 . . . . . . . . . . . . Heavy 3 | . . . 1 . . . . . 1 . . . . . . 1 . . Behemoth 3 | . . . . . . . . . . . 2 . . 1 . . . . Compactor 1 | . . . . . . . . 1 . . . . . . . . . . Cetus Guard 2 | . . . . . . . . . . . . 2 . . . . . . Surgeon 1 | . . . . . . . . . . . 1 . . . . . . . Thug 3 | . . . . . . . . . . . 2 . . 1 . . . . Savage 1 | . . . . . . . . . . . . . . 1 . . . . Best Kill Streak 13 | . 4 3 6 8 . 4 . 1 2 . 3 2 1 13 . 3 4 2 Combat Bots Only 6 | . 4 3 5 6 . 4 . 1 2 . 3 2 1 4 . 3 4 2 Max Kills in Single Turn 3 | . 2 1 3 2 . 1 . 1 1 . 2 1 1 3 . 1 3 2 Gunslinging 1 | . . . 1 . . . . . . . 1 . . . . . . . Exploded 2 | . . . . . . . . . . . . . . . . . 2 . Melee 1 | . . 1 . 1 . . . . . . . . . . . . 1 . Uniques/NPCs Destroyed . | . . . . . . . . . . . . . . . . . . . Combat | -11 -10 -9 -8 -7 -7 -7 -6 -6 -6 -5 -5 -5 -5 -5 -4 -4 -3 -3 -------- Run | Yrd Mat Mat Mat Fac Was Fac Fac Was Fac Fac Ext Cet Arc Hub Fac DSF Res Tes Hostile Shots Fired 1422 | . 47 170 88 202 11 113 . 1 23 7 90 11 7 146 . 128 274 104 Missed 359 | . 14 35 21 58 . 34 . . 8 3 28 1 . 22 . 32 91 12 Hits 1063 | . 33 135 67 144 11 79 . 1 15 4 62 10 7 124 . 96 183 92 Melee 49 | . . 1 . . 11 1 . 1 1 . . . . 24 . . . 10 Projectile 1014 | . 33 134 67 144 . 78 . . 14 4 62 10 7 100 . 96 183 82 AOE 3 | . . . . . . . . . 2 . . . . 1 . . . . Critical Strikes 51 | . . 2 3 5 6 2 . . 1 . 1 5 . 14 . 2 4 6 Part Disruptions 3 | . . . . . . . . . . . . . . 1 . 2 . . Damage Taken 20932 | . 433 1788 1178 1809 468 738 . 72 359 332 1463 256 213 4247 . 1792 4133 1651 Core 2940 | . 52 275 109 116 343 88 . . 10 . 111 . . 266 . 254 792 524 Absorbed by Shields 711 | . . . . 119 . 119 . . . . 156 94 . . . . . 223 Ignored by Resistances 259 | . . . . . . . . . . . . . . . . 259 . . Regen/Repaired (Parts) 1062 | . 115 . . . . . . 110 30 97 710 . . . . . . . Core Remaining (%) 68 | 100 79 31 80 . . 21 . . 98 . . . . 62 . 77 . . Volleys Fired 532 | . 52 93 62 87 . 28 . 4 22 2 53 15 7 56 . 13 33 5 Largest 4 | . 2 2 3 3 . 3 . 3 3 4 4 4 4 4 . 4 3 4 Hottest 199 | . 40 60 97 105 . 84 . 94 81 109 114 130 132 176 . 199 159 149 Shots Fired 1447 | . 104 131 184 246 . 73 . 12 66 8 212 60 29 214 . 43 45 20 Gun 1091 | . 104 131 149 135 . 73 . 12 66 8 212 45 22 112 . . 7 15 Cannon 356 | . . . 35 111 . . . . . . . 15 7 102 . 43 38 5 Launcher . | . . . . . . . . . . . . . . . . . . . Special . | . . . . . . . . . . . . . . . . . . . Kinetic 1401 | . 104 87 184 246 . 73 . 12 66 8 212 60 29 214 . 43 43 20 Thermal 44 | . . 44 . . . . . . . . . . . . . . . . Explosive . | . . . . . . . . . . . . . . . . . . . Electromagnetic 2 | . . . . . . . . . . . . . . . . . 2 . Robot Hit Streak 24 | . 24 15 14 20 . 16 . 6 6 . 12 7 7 13 . 8 9 5 Robot Miss Streak 8 | . 3 3 5 5 . 4 . 1 3 . 8 4 4 7 . 2 4 3 Penetration Max 2 | . . . 1 1 . . . . . . 1 1 1 2 . 1 . 1 Secondary Targets 15 | . 3 1 3 . . 1 . . 1 . 6 . . . . . . . Max Gunslinging Chain 1 | . 1 1 1 . . 1 . . 1 . 1 . . . . . . . Shots Hit Robots 942 | . 69 134 124 172 . 51 . 9 32 . 134 36 16 107 . 29 18 11 Core Hits 458 | . 31 49 70 86 . 29 . 3 18 . 58 11 7 56 . 13 21 6 Critical Kills 10 | . . . . 1 . 1 . . . . 4 2 . 2 . . . . Critical Parts Destroyed 24 | . . 10 1 . . . . . . . 4 1 1 7 . . . . Critical Strikes 57 | . . 10 1 9 . 2 . . . . 9 3 2 13 . 6 2 . Destroy 27 | . . . 1 1 . 2 . . . . 9 3 2 9 . . . . Blast 20 | . . . . 8 . . . . . . . . . 4 . 6 2 . Smash 10 | . . 10 . . . . . . . . . . . . . . . . Melee Attacks 46 | . . 46 . . . . . . . . . . . . . . . . Impact 46 | . . 46 . . . . . . . . . . . . . . . . Slashing . | . . . . . . . . . . . . . . . . . . . Piercing . | . . . . . . . . . . . . . . . . . . . Sneak Attacks 6 | . . 6 . . . . . . . . . . . . . . . . Combat Hostiles . | . . . . . . . . . . . . . . . . . . . Follow-up Attacks . | . . . . . . . . . . . . . . . . . . . Damage Inflicted 24731 | . 788 2910 2282 4208 . 1011 . 214 792 . 3445 1076 469 4664 . 1007 1384 481 Guns 15080 | . 786 1203 1783 2029 . 983 . 214 782 . 3404 717 358 2415 . . 65 341 Cannons 6978 | . . . 483 2080 . . . . . . . 359 110 2133 . 1000 680 133 Explosions 460 | . . . . . . . . . . . . . . . . . 460 . Melee 1692 | . . 1692 . . . . . . . . . . . . . . . . Ramming 521 | . 2 15 16 99 . 28 . . 10 . 41 . 1 116 . 7 179 7 Kinetic 21635 | . 786 799 2266 4109 . 983 . 214 782 . 3404 1076 468 4548 . 1000 726 474 Thermal 404 | . . 404 . . . . . . . . . . . . . . . . Explosive 460 | . . . . . . . . . . . . . . . . . 460 . Electromagnetic 19 | . . . . . . . . . . . . . . . . . 19 . Impact 1692 | . . 1692 . . . . . . . . . . . . . . . . Slashing . | . . . . . . . . . . . . . . . . . . . Piercing . | . . . . . . . . . . . . . . . . . . . Highest Corruption 69 | . 1 . 5 4 4 7 . . . . . 9 9 69 . 2 14 14 Average Corruption 6 | . 1 . 2 3 4 5 . . . . . 9 9 18 . 1 13 14 Corruption Purged . | . . . . . . . . . . . . . . . . . . . Corruption Blocked . | . . . . . . . . . . . . . . . . . . . Effects 190 | . 10 . 17 29 2 27 . . . . . 14 13 41 . 2 32 3 Message Errors 38 | . 2 . 5 5 1 3 . . . . . 4 4 6 . 1 7 . Matter Fused 35 | . 5 . 3 3 . 7 . . . . . 1 1 6 . 1 8 . Heat Flow Errors 18 | . . . 1 7 1 4 . . . . . . . 1 . . 4 . Energy Discharges 20 | . . . . 1 . 4 . . . . . 3 1 6 . . 4 1 Parts Rejected 9 | . . . 2 2 . 1 . . . . . 1 . 2 . . 1 . Parts Fused 4 | . . . 1 1 . . . . . . . . 1 1 . . . . Data Loss (minor) 28 | . 2 . 2 4 . 4 . . . . . 2 5 5 . . 3 1 Data Loss (major) 7 | . . . . 1 . . . . . . . 3 . 1 . . 1 1 Misfires 10 | . . . . 3 . 2 . . . . . . 1 3 . . 1 . Alerts 7 | . 1 . 1 1 . 1 . . . . . . . 1 . . 2 . Misdirections 3 | . . . . . . . . . . . . . . 3 . . . . Weapon Failures 11 | . . . 2 1 . 1 . . . . . . . 6 . . 1 . Overload Shots . | . . . . . . . . . . . . . . . . . . . Overflow Damage 780 | . . 594 . 33 . . . . . . . 15 . 75 . . 63 . Projectiles 155 | . . . . 30 . . . . . . . 15 . 75 . . 35 . Explosions 2 | . . . . . . . . . . . . . . . . . 2 . Melee 623 | . . 594 . 3 . . . . . . . . . . . . 26 . Knockbacks 51 | . . 7 4 22 . . . . . . . . . 7 . 3 5 3 Impact 7 | . . 7 . . . . . . . . . . . . . . . . Kinetic 43 | . . . 4 22 . . . . . . . . . 7 . 3 5 2 Secondary 1 | . . . . . . . . . . . . . . . . . . 1 Self-Inflicted Damage 59 | . . . . . . . . . . . . . . . . . 56 3 Shots . | . . . . . . . . . . . . . . . . . . . Rammed 91 | . 1 . 3 10 . 5 . . 2 . 2 . 1 11 . 1 54 1 Targets Rammed 103 | . 1 1 5 13 . 5 . . 2 . 4 . 1 14 . 1 55 1 Kicked 1 | . . 1 . . . . . . . . . . . . . . . . Crushed 11 | . . . 2 3 . . . . . . 2 . . 3 . . 1 . Highest Temperature 667 | . 15 128 245 449 255 234 . 191 257 97 438 434 63 311 264 130 296 667 Average Temperature 105 | . 6 27 50 128 136 67 . 109 81 49 130 186 23 80 143 63 82 263 Received Heat Transfer 3932 | . 99 837 342 654 . 166 . . 93 . 378 8 . 540 . 273 72 470 Effects 37 | . . . . 10 . 1 . . . . 4 11 . . . . 1 10 Shutdowns 15 | . . . . 4 . . . . . . 3 5 . . . . . 3 Energy Bleed 7 | . . . . 4 . . . . . . . . . . . . 1 2 Interference 3 | . . . . 2 . 1 . . . . . . . . . . . . Matter Decay 1 | . . . . . . . . . . . . 1 . . . . . . Short Circuit 2 | . . . . . . . . . . . . . . . . . . 2 Damage (minor) 3 | . . . . . . . . . . . 1 1 . . . . . 1 Damage (major) 6 | . . . . . . . . . . . . 4 . . . . . 2 Siege Activations . | . . . . . . . . . . . . . . . . . . . Martial Activations . | . . . . . . . . . . . . . . . . . . . Shielding Activations . | . . . . . . . . . . . . . . . . . . . Robots Disrupted . | . . . . . . . . . . . . . . . . . . . Combat Hostiles . | . . . . . . . . . . . . . . . . . . . Robots Corrupted 11 | . . 9 . . . . . . . . . . . . . . 2 . Combat Hostiles 6 | . . 5 . . . . . . . . . . . . . . 1 . Parts Fried 17 | . . 14 . . . . . . . . . . . . . . 3 . Impact Corruptions 25 | . . 21 . 1 . . . . . . . . . . . . 3 . Robots Melted . | . . . . . . . . . . . . . . . . . . . Combat Hostiles . | . . . . . . . . . . . . . . . . . . . Parts Melted 6 | . . 2 . . . . . . . . 3 . . 1 . . . . Heat Transferred 850 | . . 850 . . . . . . . . . . . . . . . . Parts Sabotaged . | . . . . . . . . . . . . . . . . . . . Parts Stolen . | . . . . . . . . . . . . . . . . . . . Parts Stripped . | . . . . . . . . . . . . . . . . . . . Power Chain Reactions . | . . . . . . . . . . . . . . . . . . . Alert | -11 -10 -9 -8 -7 -7 -7 -6 -6 -6 -5 -5 -5 -5 -5 -4 -4 -3 -3 ------- Run | Yrd Mat Mat Mat Fac Was Fac Fac Was Fac Fac Ext Cet Arc Hub Fac DSF Res Tes Maximum Alert Level 4 | . . 1 1 2 1 . . . 1 . 2 2 1 4 2 2 1 . Low Security (%) 64 | 100 100 96 73 58 47 100 100 100 66 100 45 33 64 5 . . 12 100 Level 1 21 | . . 3 26 23 52 . . . 33 . 19 58 35 17 . 62 87 . Level 2 9 | . . . . 17 . . . . . . 34 7 . 14 100 37 . . Level 3 . | . . . . . . . . . . . . . . 15 . . . . Level 4 2 | . . . . . . . . . . . . . . 46 . . . . Level 5 . | . . . . . . . . . . . . . . . . . . . High Security . | . . . . . . . . . . . . . . . . . . . Max Security . | . . . . . . . . . . . . . . . . . . . Peak Influence 1400 | . 131 251 289 640 223 126 . 13 358 161 629 416 259 1400 588 442 324 162 Initial 588 | . . 50 71 116 223 79 . . . 161 53 112 121 41 588 320 237 138 Average 186 | . 26 81 104 186 179 35 . . 131 141 246 260 186 851 525 384 252 112 Influence Increases 9049 | . 356 968 684 1089 . 298 . 32 882 10 1254 576 198 1915 . 132 611 44 Destroy 0b10 Robot/C 4340 | . 240 560 480 680 . 180 . . 400 . 580 240 80 540 . 100 220 40 Destroy 0b10 Robot/NC 420 | . 25 45 45 70 . 10 . . 10 . 30 10 . 150 . . 25 . Destroy Leader 882 | . 54 164 148 162 . 62 . . 72 . 54 10 . 114 . 20 22 . Allied During Kill 1763 | . . . . . . . . . 275 . 471 260 80 677 . . . . Successful Hack 211 | . 22 15 10 28 . 15 . . 30 10 22 21 . 18 . . 20 . Select Force Hacks 60 | . . 30 . 30 . . . . . . . . . . . . . . Disable Machine 330 | . 15 30 . 60 . . . . 60 . 15 . 30 75 . . 45 . Anti-Garrison Action 150 | . . . . . . . . . . . . . . 150 . . . . Destroy Structure 383 | . . 4 1 14 . 1 . 32 35 . 22 20 8 176 . 12 54 4 Partial Spotted 30 | . . 30 . . . . . . . . . . . . . . . . Lose Combat Pursuer 480 | . . 90 . 45 . 30 . . . . 60 15 . 15 . . 225 . Influence Decreases 9007 | . 237 917 598 707 525 411 . 32 553 228 1164 473 383 832 744 168 787 248 Entered New Map 2378 | . . 69 99 140 415 34 . . . 168 58 89 183 78 614 138 185 108 Time Decay 4516 | . 237 515 479 527 50 377 . 22 373 60 486 334 170 374 130 . 362 20 Lost Part 820 | . . 90 20 40 60 . . 10 . . 10 10 10 200 . 30 220 120 Lost Ally 600 | . . . . . . . . . 180 . 160 40 20 180 . . 20 . Purge Threat 693 | . . 243 . . . . . . . . 450 . . . . . . . Squads Dispatched 47 | . 2 3 4 10 . 4 . . 6 2 1 1 . 7 . 2 4 1 Investigation 15 | . . 1 2 3 . 2 . . 3 1 . 1 . . . . 2 . Extermination 9 | . . . . 4 . 2 . . 2 . . . . 1 . . . . Reinforcement 20 | . 2 2 2 3 . . . . 1 1 1 . . 3 . 2 2 1 Assault 3 | . . . . . . . . . . . . . . 3 . . . . Garrison . | . . . . . . . . . . . . . . . . . . . Intercept . | . . . . . . . . . . . . . . . . . . . Searches Triggered . | . . . . . . . . . . . . . . . . . . . Construction Impeded 3 | . . . . 2 . . . . . . 1 . . . . . . . Haulers Reinforced 1 | . . . . . . . . . . . . . . . . . 1 . Active Scanning Responses . | . . . . . . . . . . . . . . . . . . . Cargo Convoy Interrupts . | . . . . . . . . . . . . . . . . . . . Stealth | -11 -10 -9 -8 -7 -7 -7 -6 -6 -6 -5 -5 -5 -5 -5 -4 -4 -3 -3 --------- Run | Yrd Mat Mat Mat Fac Was Fac Fac Was Fac Fac Ext Cet Arc Hub Fac DSF Res Tes Distress Signals 17 | . 1 4 3 1 . 1 . . . . . 2 . 2 . . 2 1 Communications Jammed 86 | . . . . . . 2 . . 11 . 28 . . 45 . . . . Distress Signals 67 | . . . . . . 2 . . . . 28 . . 37 . . . . Times Spotted 333 | . 20 47 32 50 6 16 . 4 19 1 28 12 6 40 . 10 33 9 Peak Tracking Total 9 | . 5 6 5 4 6 5 . 2 4 1 5 5 2 7 . 5 6 9 Tactical Retreats 20 | . . 5 . 2 . 2 . . . . 2 1 . 1 . . 7 . Traps | -11 -10 -9 -8 -7 -7 -7 -6 -6 -6 -5 -5 -5 -5 -5 -4 -4 -3 -3 ------- Run | Yrd Mat Mat Mat Fac Was Fac Fac Was Fac Fac Ext Cet Arc Hub Fac DSF Res Tes Traps Triggered 14 | . 3 2 2 3 . 1 1 . . . . . . 1 . . 1 . Indirectly . | . . . . . . . . . . . . . . . . . . . Trap Hack Attempts . | . . . . . . . . . . . . . . . . . . . Triggered . | . . . . . . . . . . . . . . . . . . . Disarmed . | . . . . . . . . . . . . . . . . . . . Reprogrammed . | . . . . . . . . . . . . . . . . . . . Reused . | . . . . . . . . . . . . . . . . . . . Traps Extracted . | . . . . . . . . . . . . . . . . . . . Installed . | . . . . . . . . . . . . . . . . . . . Triggered . | . . . . . . . . . . . . . . . . . . . Machines | -11 -10 -9 -8 -7 -7 -7 -6 -6 -6 -5 -5 -5 -5 -5 -4 -4 -3 -3 ---------- Run | Yrd Mat Mat Mat Fac Was Fac Fac Was Fac Fac Ext Cet Arc Hub Fac DSF Res Tes Machines Disabled 25 | . 1 2 . 4 . . . . 4 . 3 . 2 6 . . 3 . Max in Single Turn 1 | . 1 1 . 1 . . . . . . 1 . 1 1 . . 1 . Garrison Access 2 | . . . . . . . . . 1 . . . . 1 . . . . Network Hub 1 | . . . . . . . . . . . . . . 1 . . . . Machines Repaired . | . . . . . . . . . . . . . . . . . . . Machines Dismantled . | . . . . . . . . . . . . . . . . . . . Machines Sabotaged . | . . . . . . . . . . . . . . . . . . . Overloaded Fab Kills . | . . . . . . . . . . . . . . . . . . . Hacking | -11 -10 -9 -8 -7 -7 -7 -6 -6 -6 -5 -5 -5 -5 -5 -4 -4 -3 -3 --------- Run | Yrd Mat Mat Mat Fac Was Fac Fac Was Fac Fac Ext Cet Arc Hub Fac DSF Res Tes Machines Accessed 63 | . 6 8 4 7 . 3 . . 10 3 10 3 1 6 1 . 1 . Terminals 51 | . 5 7 3 4 . 3 . . 5 3 10 3 . 6 1 . 1 . Fabricators 2 | . . . . 1 . . . . 1 . . . . . . . . . Repair Stations 4 | . 1 . . 1 . . . . 2 . . . . . . . . . Recycling Units . | . . . . . . . . . . . . . . . . . . . Scanalyzers 4 | . . 1 1 1 . . . . 1 . . . . . . . . . Garrison Access 1 | . . . . . . . . . 1 . . . . . . . . . Total Hacks 168 | . 27 24 12 19 . 8 . . 25 6 17 7 7 12 2 . 2 . Successful 86 | . 20 14 5 6 . 2 . . 8 3 10 5 7 3 1 . 2 . Failed 80 | . 7 9 6 13 . 6 . . 17 3 7 2 . 9 1 . . . Catastrophic 22 | . 1 3 . 3 . 3 . . 5 1 3 1 . 2 . . . . Database Lockouts 2 | . . 1 1 . . . . . . . . . . . . . . . Manual 91 | . 10 20 6 10 . 8 . . 11 4 5 3 . 11 . . 3 . Terminals 120 | . 18 20 9 8 . 8 . . 11 6 17 7 . 12 2 . 2 . Fabricators 4 | . . . . 2 . . . . 2 . . . . . . . . . Repair Stations 20 | . 9 . . 4 . . . . 7 . . . . . . . . . Recycling Units . | . . . . . . . . . . . . . . . . . . . Scanalyzers 15 | . . 4 3 5 . . . . 3 . . . . . . . . . Garrison Access 2 | . . . . . . . . . 2 . . . . . . . . . Terminal Hacks 46 | . 8 7 2 1 . 2 . . 1 2 8 5 7 1 1 . 1 . Record 15 | . . . . 1 . . . . 1 . . 5 7 . . . 1 . Robot Analysis 7 | . 3 1 2 . . 1 . . . . . . . . . . . . Prototype ID Bank 2 | . 1 1 . . . . . . . . . . . . . . . . Open Door 6 | . . . . . . . . . . 1 5 . . . . . . . Open DSF 1 | . . . . . . . . . . . . . . . 1 . . . Unreport Threat 6 | . . 2 . . . 1 . . . . 3 . . . . . . . Locate Traps 1 | . 1 . . . . . . . . . . . . . . . . . Dispatch Records 1 | . . 1 . . . . . . . . . . . . . . . . Patrol Status 1 | . . 1 . . . . . . . . . . . . . . . . Hauler Manifests 2 | . 1 . . . . . . . . . . . . 1 . . . . Zone Layout 4 | . 2 1 . . . . . . . 1 . . . . . . . . Fabricator Hacks . | . . . . . . . . . . . . . . . . . . . Repair Station Hacks 11 | . 8 . . 1 . . . . 2 . . . . . . . . . Scan Component 7 | . 4 . . 1 . . . . 2 . . . . . . . . . Repair 4 | . 4 . . . . . . . . . . . . . . . . . Recycling Unit Hacks . | . . . . . . . . . . . . . . . . . . . Scanalyzer 6 | . . 3 1 1 . . . . 1 . . . . . . . . . Retrieve Study 6 | . . 3 1 1 . . . . 1 . . . . . . . . . Garrison Access Hacks 1 | . . . . . . . . . 1 . . . . . . . . . Seal Access 1 | . . . . . . . . . 1 . . . . . . . . . Unauthorized Hacks 22 | . 4 4 2 3 . . . . 3 1 2 . . 2 . . 1 . Terminals 19 | . 4 3 2 1 . . . . 3 1 2 . . 2 . . 1 . Botnet 19 | . 4 3 2 1 . . . . 3 1 2 . . 2 . . 1 . Fabricators 1 | . . . . 1 . . . . . . . . . . . . . . Report 1 | . . . . 1 . . . . . . . . . . . . . . Repair Stations . | . . . . . . . . . . . . . . . . . . . Recycling Units . | . . . . . . . . . . . . . . . . . . . Scanalyzers 2 | . . 1 . 1 . . . . . . . . . . . . . . Extract 2 | . . 1 . 1 . . . . . . . . . . . . . . Garrison Access . | . . . . . . . . . . . . . . . . . . . Data Cores Recovered 3 | . . . . 1 . . . . 1 . 1 . . . . . . . Used 1 | . . . . . . . . . 1 . . . . . . . . . Hacking Detections 53 | . 6 7 4 7 . 3 . . 9 3 6 3 . 5 . . . . Full Trace Events 14 | . 3 . 2 2 . 2 . . 3 1 . 1 . . . . . . Feedback Events 1 | . 1 . . . . . . . . . . . . . . . . . Corruption 1 | . 1 . . . . . . . . . . . . . . . . . Feedback Blocked . | . . . . . . . . . . . . . . . . . . . Robot Schematics Acquired . | . . . . . . . . . . . . . . . . . . . Robots Built . | . . . . . . . . . . . . . . . . . . . Authchips . | . . . . . . . . . . . . . . . . . . . Time . | . . . . . . . . . . . . . . . . . . . Total Robot Build Rating . | . . . . . . . . . . . . . . . . . . . Part Schematics Acquired 7 | . . 5 . 2 . . . . . . . . . . . . . . Parts Built . | . . . . . . . . . . . . . . . . . . . Authchips . | . . . . . . . . . . . . . . . . . . . Time . | . . . . . . . . . . . . . . . . . . . Total Part Build Rating . | . . . . . . . . . . . . . . . . . . . Part Studies Acquired 5 | . . 3 1 1 . . . . . . . . . . . . . . Parts Repaired 4 | . 4 . . . . . . . . . . . . . . . . . Time 104 | . 104 . . . . . . . . . . . . . . . . . Parts Recycled . | . . . . . . . . . . . . . . . . . . . Recycled Matter . | . . . . . . . . . . . . . . . . . . . Retrieved Matter . | . . . . . . . . . . . . . . . . . . . Retrieved Components . | . . . . . . . . . . . . . . . . . . . Parts Scanalyzed . | . . . . . . . . . . . . . . . . . . . Part Schematics Acquired . | . . . . . . . . . . . . . . . . . . . Parts Damaged . | . . . . . . . . . . . . . . . . . . . Bothacking | -11 -10 -9 -8 -7 -7 -7 -6 -6 -6 -5 -5 -5 -5 -5 -4 -4 -3 -3 ------------ Run | Yrd Mat Mat Mat Fac Was Fac Fac Was Fac Fac Ext Cet Arc Hub Fac DSF Res Tes Used RIF Installer . | . . . . . . . . . . . . . . . . . . . Robots Hacked . | . . . . . . . . . . . . . . . . . . . Non-combat . | . . . . . . . . . . . . . . . . . . . Combat . | . . . . . . . . . . . . . . . . . . . Robot Hacks Applied . | . . . . . . . . . . . . . . . . . . . Relay Couplers Released 2 | . . . . . . . . . . . . . . 2 . . . . Machine Destruction 2 | . . . . . . . . . . . . . . 2 . . . . Fabnet Peak Effective % . | . . . . . . . . . . . . . . . . . . . Robots Rewired 14 | . . . . . . . . . . . 14 . . . . . . . Allies Hacked 2 | . . . . . . . . . 2 . . . . . . . . . Hacks Repelled . | . . . . . . . . . . . . . . . . . . . Allies | -11 -10 -9 -8 -7 -7 -7 -6 -6 -6 -5 -5 -5 -5 -5 -4 -4 -3 -3 -------- Run | Yrd Mat Mat Mat Fac Was Fac Fac Was Fac Fac Ext Cet Arc Hub Fac DSF Res Tes Total Allies 43 | . . . . . . . . 18 . . 20 5 . . . . . . Largest Group 18 | . . . . . . . . 18 16 2 13 16 14 12 . . . . Highest-Rated Group 911 | . . . . . . . . 656 593 54 465 911 853 605 . . . . Highest-Rated Ally 159 | . . . . . . . . 50 50 27 159 159 159 96 . . . . Total Orders . | . . . . . . . . . . . . . . . . . . . Ally Attacks 608 | . . . . . . . . 144 87 . 149 91 26 111 . . . . Total Damage 15508 | . . . . . . . . 4049 2124 . 2704 1869 458 4304 . . . . Kills 74 | . . . . . . . . 6 16 . 14 11 3 24 . . . . Allies Corrupted 2 | . . . . . . . . . 2 . . . . . . . . . Allies Melted 2 | . . . . . . . . . . . 1 . . 1 . . . . Intel | -11 -10 -9 -8 -7 -7 -7 -6 -6 -6 -5 -5 -5 -5 -5 -4 -4 -3 -3 ------- Run | Yrd Mat Mat Mat Fac Was Fac Fac Was Fac Fac Ext Cet Arc Hub Fac DSF Res Tes Active Infowar (turns) 6788 | . . . . . . 1117 136 578 1404 123 1546 751 352 781 . . . . Sensors 4829 | . . . . . . . 108 578 1404 123 1546 751 51 268 . . . . Jamming 6686 | . . . . . . 1117 136 578 1404 123 1546 751 352 679 . . . . Robot Analysis Total 7 | . 3 1 2 . . 1 . . . . . . . . . . . . Derelict Logs Recovered . | . . . . . . . . . . . . . . . . . . . Drone Launches 2 | . . . . . . . . . . . . . . . . . 2 . Drone Recoveries . | . . . . . . . . . . . . . . . . . . . Exploration | -11 -10 -9 -8 -7 -7 -7 -6 -6 -6 -5 -5 -5 -5 -5 -4 -4 -3 -3 ------------- Run | Yrd Mat Mat Mat Fac Was Fac Fac Was Fac Fac Ext Cet Arc Hub Fac DSF Res Tes Turns Passed 15098 | 68 1033 1958 1288 2308 105 1277 136 578 1404 123 1546 751 352 864 269 151 832 55 Spaces Moved 7260 | 45 473 707 496 800 72 720 82 319 836 74 718 404 189 378 159 60 704 24 Core 282 | 20 . 2 . . 38 67 . . . . . . . 2 . . 149 4 Treads 5804 | 25 425 197 448 800 34 653 82 319 836 74 718 404 189 352 159 60 29 . Legs 542 | . 48 494 . . . . . . . . . . . . . . . . Wheels 86 | . . 14 48 . . . . . . . . . . 24 . . . . Hover 506 | . . . . . . . . . . . . . . . . . 486 20 Flight 40 | . . . . . . . . . . . . . . . . . 40 . Fastest Speed 31 | 50 120 105 156 162 50 50 160 155 155 156 156 155 155 105 160 160 31 50 Average Speed 160 | 131 156 146 200 240 133 157 160 159 155 156 156 156 156 159 160 160 81 94 Slowest Speed 1350 | 250 190 320 243 246 1350 200 160 160 160 156 157 157 157 800 160 160 500 103 Overloaded Moves . | . . . . . . . . . . . . . . . . . . . Propulsion Burnouts . | . . . . . . . . . . . . . . . . . . . Robots Hopped 1 | . . . . . . . . . . . 1 . . . . . . . Potential Cave-ins . | . . . . . . . . . . . . . . . . . . . Cave-ins Triggered 1 | . . . 1 . . . . . . . . . . . . . . . Exploration Rate (%) 44 | 5 85 66 41 23 65 23 3 96 21 3 80 78 92 50 4 80 21 6 Regions Visited 18 Branch Regions 5 Pre-discovered Areas . | . . . . . . . . . . . . . . . . . . . Known Exits Taken 9 | . 1 . . . . . . . 1 1 1 1 1 1 1 . 1 . Unknown Exits Taken 4 | 1 . 1 1 . . 1 . . . . . . . . . . . . Scrap Searched . | . . . . . . . . . . . . . . . . . . . Spaces Dug 14 | . . 4 . . . . . . 1 . . . . 5 . . 4 . Terrain Destroyed 152 | . . 4 . 12 . . . 1 1 . 13 7 4 74 . 6 27 3 Melee 4 | . . 4 . . . . . . . . . . . . . . . . Projectile 139 | . . . . 12 . . . 1 1 . 13 7 4 74 . 6 18 3 AOE 9 | . . . . . . . . . . . . . . . . . 9 . Terrain Rammed . | . . . . . . . . . . . . . . . . . . . Walls Destroyed . | . . . . . . . . . . . . . . . . . . . Machines Disabled . | . . . . . . . . . . . . . . . . . . . Actions | -11 -10 -9 -8 -7 -7 -7 -6 -6 -6 -5 -5 -5 -5 -5 -4 -4 -3 -3 --------- Run | Yrd Mat Mat Mat Fac Was Fac Fac Was Fac Fac Ext Cet Arc Hub Fac DSF Res Tes Total 9546 | 51 668 1419 665 1006 79 800 88 379 895 77 1017 490 229 481 171 85 901 45 Wait 980 | . 113 496 55 72 6 17 1 34 19 1 53 50 20 2 1 . 39 1 Move 7242 | 44 472 706 495 800 71 719 82 318 835 73 715 403 188 377 158 59 703 24 Hop 1 | . . . . . . . . . . . 1 . . . . . . . Pick Up 78 | . 12 18 13 6 . 6 1 3 2 . 2 4 1 4 1 3 2 . Fast Attach 113 | 6 8 12 5 3 . 10 . 6 1 . 1 2 3 9 8 4 34 1 Attach 40 | . . 5 2 7 . 4 3 2 2 1 1 . 1 3 . . 9 . Detach 12 | . . . . . . . 1 3 . . . . 1 . 1 . 6 . Swap 94 | 1 6 21 13 10 2 5 . 2 6 . 9 7 3 9 . . . . Drop 108 | . 4 21 15 6 . 6 . 7 6 . 8 9 4 7 2 5 7 1 Fire 532 | . 52 93 62 87 . 28 . 4 22 2 53 15 7 56 . 13 33 5 Melee 46 | . . 46 . . . . . . . . . . . . . . . . Ram 33 | . . . . . . . . . . . . . . 1 . . 31 1 Kick 1 | . . 1 . . . . . . . . . . . . . . . . Crush 69 | . 1 . 5 13 . 5 . . 2 . 4 . 1 13 . 1 24 . Escape Stasis 27 | . . . . 2 . . . . . . . . . . . . 13 12 Rewire 170 | . . . . . . . . . . . 170 . . . . . . . Trap . | . . . . . . . . . . . . . . . . . . . Miscellaneous . | . . . . . . . . . . . . . . . . . . . Route ------- -11/Scrapyard -10/Materials (discovered 4 exits: *Mat x2 / *Min x2) -9/Materials (discovered 3 exits: *Mat x2 / [*Min]) -8/Materials -7/Factory -7/Waste -7/Factory -6/Factory -6/Waste -6/Factory -5/Factory -5/Extension (discovered 3 exits: *Fac x2 / *Cet) -5/Cetus (discovered 3 exits: *Fac x2 / *Arc) -5/Archives (discovered 3 exits: *Fac / *Hub x2) -5/Hub_04(d) -4/Factory -4/DSF -3/Research -3/Testing History --------- Turn | Location | Event 11 | -11/Scrapyard | Discovered new exit (range 16) 69 | -11/Scrapyard | Entered Materials 155 | -10/Materials | Discovered new exit (range 14) 308 | -10/Materials | Build established: Mutant 358 | -10/Materials | Discovered new exit (range 16) 417 | -10/Materials | Identified exit to Materials 550 | -10/Materials | Repaired Tractor Beam 577 | -10/Materials | Repaired ECM Suite 604 | -10/Materials | Repaired Lgt. Treads 632 | -10/Materials | Repaired Lgt. Treads 813 | -10/Materials | Discovered new exit (range 13) 830 | -10/Materials | Identified exit to Mines 1079 | -10/Materials | Discovered exit to Materials (range 11) 1102 | -10/Materials | Entered another Materials area 1102 | -9/Materials | Evolved 2 slots: Propulsion x1, Utility x1 1199 | -9/Materials | Lost 5 parts (1p2n2w) 1363 | -9/Materials | Discovered new exit (range 3) 1523 | -9/Materials | Build established: Scavenger-Mutant 1741 | -9/Materials | Core integrity fell below 50% 2148 | -9/Materials | Discovered new exit (range 7) 2315 | -9/Materials | Central database locked down 2908 | -9/Materials | Discovered new exit (range 12) 3060 | -9/Materials | Entered another Materials area 3060 | -8/Materials | Evolved 2 slots: Propulsion x1, Weapon x1 3365 | -8/Materials | Build established: Scavenger-Gunner 3398 | -8/Materials | Crushed by falling debris 3973 | -8/Materials | Central database locked down 4080 | -8/Materials | Build established: Gunner 4158 | -8/Materials | Discovered new exit (range 5) 4348 | -8/Materials | Entered Factory 4348 | -7/Factory | Evolved 2 slots: Utility x2 6656 | -7/Factory | Sucked down chute 6656 | -7/Factory | Entered Waste 6696 | -7/Waste | Spotted C-40 Crusher 6701 | -7/Waste | Spotted C-40 Crusher 6711 | -7/Waste | Crushed by Compactor (1 part destroyed, 1 dropped) 6712 | -7/Waste | Spotted C-40 Crusher 6712 | -7/Waste | Spotted C-40 Crusher 6715 | -7/Waste | Crushed by Compactor (1 part destroyed, 2 dropped) 6720 | -7/Waste | Spotted C-40 Crusher 6725 | -7/Waste | Crushed by Compactor (1 part destroyed, 1 dropped) 6728 | -7/Waste | Crushed by Compactor (1 part destroyed, 2 dropped) 6731 | -7/Waste | Crushed by Compactor (1 part destroyed, 1 dropped) 6734 | -7/Waste | Crushed by Compactor (1 part destroyed) 6738 | -7/Waste | Core integrity fell below 50% 6751 | -7/Waste | Spotted C-40 Crusher 6756 | -7/Waste | Discovered new exit (range 10) 6761 | -7/Waste | Entered Factory 6765 | -7/Factory | Lost 6 parts (3n2u1w) 6999 | -7/Factory | Build established: Mutant 7649 | -7/Factory | Build established: Scavenger-Tank 7684 | -7/Factory | Discovered new exit (range 15) 8038 | -7/Factory | Entered another Factory area 8038 | -6/Factory | Evolved 2 slots: Power x1, Utility x1 8174 | -6/Factory | Sucked down chute 8174 | -6/Factory | Entered Waste 8195 | -6/Waste | Spotted C-40 Crusher 8249 | -6/Waste | Spotted C-40 Crusher 8282 | -6/Waste | Spotted C-40 Crusher 8288 | -6/Waste | Crushed by Compactor (1 part destroyed, 2 dropped) 8295 | -6/Waste | Warlord forces began an assault 8297 | -6/Waste | Allies destroyed C-40 Crusher 8308 | -6/Waste | Allies destroyed C-40 Crusher 8422 | -6/Waste | Destroyed C-40 Crusher 8425 | -6/Waste | Spotted C-40 Crusher 8429 | -6/Waste | Spotted C-40 Crusher 8431 | -6/Waste | Allies destroyed C-40 Crusher 8433 | -6/Waste | Allies destroyed C-40 Crusher 8662 | -6/Waste | Build established: Tank 8664 | -6/Waste | Discovered new exit (range 12) 8737 | -6/Waste | Identified exit to Factory 8752 | -6/Waste | Entered Factory 8752 | -6/Factory | Accompanied by 16 allies 9399 | -6/Factory | Lost 7 allies 10063 | -6/Factory | Discovered new exit (range 5) 10141 | -6/Factory | Identified exit to Factory 10156 | -6/Factory | Entered another Factory area 10156 | -5/Factory | Accompanied by 2 allies 10156 | -5/Factory | Evolved 2 slots: Propulsion x1, Weapon x1 10196 | -5/Factory | Discovered new exit (range 18) 10276 | -5/Factory | Identified exit to Extension 10279 | -5/Factory | Entered Extension 10279 | -5/Extension | Accompanied by 2 allies 10564 | -5/Extension | Rescued a captive Derelict 10567 | -5/Extension | Rescued a captive Derelict 10993 | -5/Extension | Build established: Commander-Tank 11107 | -5/Extension | Rescued A7 11111 | -5/Extension | Spotted B-75 Beast 11121 | -5/Extension | Spotted B-75 Beast 11137 | -5/Extension | Destroyed B-75 Beast 11145 | -5/Extension | Destroyed B-75 Beast 11153 | -5/Extension | Lost 3 allies 11199 | -5/Extension | Discovered new exit (range 3) 11201 | -5/Extension | Identified exit to Factory 11254 | -5/Extension | Rescued a captive Derelict 11255 | -5/Extension | Rescued a captive Derelict 11440 | -5/Extension | Build established: Scavenger-Tank 11582 | -5/Extension | Rescued a captive Derelict 11781 | -5/Extension | Discovered exit to Factory (range 10) 11783 | -5/Extension | Discovered new exit (range 6) 11806 | -5/Extension | Identified exit to Cetus 11825 | -5/Extension | Entered Cetus 11825 | -5/Cetus | Accompanied by 12 allies (A7) 11830 | -5/Cetus | Acquired a Cetus Manufacturing Module code from A7 11845 | -5/Cetus | Spotted Cetus Guard 11845 | -5/Cetus | Spotted Cetus Guard 11846 | -5/Cetus | Destroyed Cetus Guard 11848 | -5/Cetus | Spotted Cetus Guard 11849 | -5/Cetus | Spotted Cetus Guard 11856 | -5/Cetus | Allies destroyed Cetus Guard 11863 | -5/Cetus | Allies destroyed Cetus Guard 11875 | -5/Cetus | Allies destroyed Cetus Guard 11937 | -5/Cetus | Discovered exit to Factory (range 15) 11939 | -5/Cetus | Build established: Commander-Tank 12056 | -5/Cetus | Started Cetus Manufacturing Module 12081 | -5/Cetus | Manufactured an Enhanced Grunt 12106 | -5/Cetus | Manufactured an Enhanced Grunt 12131 | -5/Cetus | Manufactured an Enhanced Grunt 12156 | -5/Cetus | Manufactured an Enhanced Grunt 12181 | -5/Cetus | Manufactured an Enhanced Grunt 12210 | -5/Cetus | Discovered new exit (range 16) 12232 | -5/Cetus | Identified exit to Archives 12265 | -5/Cetus | Spotted Cetus Guard 12266 | -5/Cetus | Spotted Cetus Guard 12269 | -5/Cetus | Spotted Cetus Guard 12271 | -5/Cetus | Spotted Cetus Guard 12276 | -5/Cetus | Allies destroyed Cetus Guard 12283 | -5/Cetus | Allies destroyed Cetus Guard 12284 | -5/Cetus | Destroyed Cetus Guard 12288 | -5/Cetus | Allies destroyed Cetus Guard 12301 | -5/Cetus | Discovered exit to Factory (range 16) 12310 | -5/Cetus | Met Revision 17 12575 | -5/Cetus | Security sweep announced 12576 | -5/Cetus | Entered Archives 12576 | -5/Archives | Accompanied by 14 allies (A7) 12663 | -5/Archives | Discovered exit to Factory (range 14) 12677 | -5/Archives | Unable to access archive contents 12685 | -5/Archives | Discovered new exit (range 15) 12708 | -5/Archives | Unable to access archive contents 12715 | -5/Archives | Discovered new exit (range 15) 12738 | -5/Archives | Unable to access archive contents 12777 | -5/Archives | Identified exit to Hub_04(d) 12928 | -5/Archives | Entered Hub_04(d) 12928 | -5/Hub_04(d) | Accompanied by 12 allies 12932 | -5/Hub_04(d) | Build established: Scavenger-Tank 13111 | -5/Hub_04(d) | System corruption reached 10% 13227 | -5/Hub_04(d) | Lost 3 allies 13239 | -5/Hub_04(d) | Discovered exit to Factory (range 15) 13285 | -5/Hub_04(d) | Lost 3 allies 13478 | -5/Hub_04(d) | Spotted B-75 Beast 13513 | -5/Hub_04(d) | Destroyed B-75 Beast 13528 | -5/Hub_04(d) | First assault squad dispatched 13530 | -5/Hub_04(d) | Lost 3 allies 13635 | -5/Hub_04(d) | Network Hub disabled 13640 | -5/Hub_04(d) | System corruption reached 30% 13654 | -5/Hub_04(d) | Spotted Lightning 13656 | -5/Hub_04(d) | Spotted Lightning 13666 | -5/Hub_04(d) | Lost 5 parts (2p1n1u1w) 13666 | -5/Hub_04(d) | Spotted Lightning 13786 | -5/Hub_04(d) | Lost 13 parts (4n5u4w) 13792 | -5/Hub_04(d) | Entered Factory 13792 | -4/Factory | Evolved 2 slots: Propulsion x1, Utility x1 13836 | -4/Factory | Found Unknown Device 13836 | -4/Factory | Identified Quantum Capacitor 14028 | -4/Factory | Identified exit to DSF 14061 | -4/Factory | Entered DSF 14099 | -4/DSF | Additional patrols routed to DSF 14191 | -4/DSF | Discovered new exit (range 14) 14211 | -4/DSF | Identified exit to Research 14212 | -4/DSF | Entered Research 14212 | -3/Research | Evolved 2 slots: Utility x1, Weapon x1 14341 | -3/Research | System corruption reached 10% 14358 | -3/Research | Spotted B-86 Titan 14366 | -3/Research | Lost 12 parts (2p4n3u3w) 14412 | -3/Research | Revision forces began assault on 0b10 14474 | -3/Research | Met up with Revision 17++ 14478 | -3/Research | Lost 5 parts (1n4w) 14630 | -3/Research | Core integrity fell below 50% 14828 | -3/Research | Build established: Scavenger-Mutant 14873 | -3/Research | Lost 3 parts (2p1w) 14912 | -3/Research | Research terminal network offline 15023 | -3/Research | Discovered new exit (range 11) 15024 | -3/Research | Spotted Striker 15029 | -3/Research | Identified exit to Testing 15044 | -3/Research | Entered Testing 15068 | -3/Testing | Scanned by Researcher 15090 | -3/Testing | Released all parts (5) 15094 | -3/Testing | Core integrity fell below 20% 15099 | -3/Testing | Destroyed by G-67 Veteran with Field Laser Last Messages --------------- 15089_ Mic. Antimatter Reactor destroyed. 15089_ Hvy. Machine Gun destroyed. 15089_ Railgun destroyed. 15090_ Released Antigrav Array. 15090_ Released Broken Antigrav Array. 15090_ Released Adv. Signal Interpreter. 15090_ Released Broken Adv. Targeting Computer. 15090_ Released Particle Reactor. 15092_ Held in stasis. 15092_ C-55 Analyst is analyzing... 15092_ Critical hit (Burn: +37). 15093_ Overheating: Energy bleed (-13). 15093_ Critical hit (Burn: +50). 15095_ System corrupted: Substantial component data lost. 15096_ Held in stasis. 15096_ C-55 Analyst is analyzing... [Achievement: 20k Club] [Achievement: Just Browsing] [Achievement: Achiever] Map ----- +----------------------------------------------------+ | ???????????????????????????????????????????? | | ???????????????????????????????????????????? | | ???????????????????????????????????????????? | | ???????????????????????????????????????????? | | ???????????????????????????????????????????? | | ?????????????????#########?????????????????? | | ?????????????????# #?????????????????? | | ?????????????????# #?????????????????? | | ?????????????????# #?????????????????? | | ?????????????????# #?????????????????? | | ?????????????????#### #?????????????????? | | ????????????????????# #?????????????????? | | ?????????????????#### #?????????????????? | | ?????????????????# #?????????????????? | | ?????????????????# #?????????????????? | | ?????????????????# #?????????????????? | | ?????????????????#### #?????????????????? | | ????????????????????# #?????????????????? | | ????????????????????#=% #?????????????????? | | ?????????????########%[^ #?????????????????? | | ?????????????#"!"""%g= #?????????????????? | | ?????????????#"! "==g #?????????????????? | | ?????????????##" c l# #?????????????????? | | ???????????????" g#% #?????????????????? | | ???????????????"! # #?????????????????? | | ???????????????#"""@# #?????????????????? | | ???????????????###### #?????????????????? | | ????????????????????# #?????????????????? | | ????????????????????? #?????????????????? | | ????????????????????? #?????????????????? | | ????????????????????? #?????????????????? | | ????????????????????? #?????????????????? | | ????????????????????? #?????????????????? | | ????????????????????? #?????????????????? | | ????????????????????? ???????????????????? | | ???????????????????????????????????????????? | | ???????????????????????????????????????????? | | ???????????????????????????????????????????? | | ???????????????????????????????????????????? | | ???????????????????????????????????????????? | | ???????????????????????????????????????????? | | ???????????????????????????????????????????? | | ???????????????????????????????????????????? | | ???????????????????????????????????????????? | | ???????????????????????????????????????????? | | ???????????????????????????????????????????? | | ???????????????????????????????????????????? | | ???????????????????????????????????????????? | | ???????????????????????????????????????????? | | ???????????????????????????????????????????? | +----------------------------------------------------+ Best States ------------- Heat Dissipation 72 Energy Generation 41 Energy Capacity 580 Matter Stores 300 Matter Capacity 400 Sight Range 16 Robot Scan Range 16 Terrain Scan Density 10 Jamming Range 12 Armor Coverage 750 Resistance: TH 30 Weapon Cycling 25 Evasion (%) 56 Targeting Accuracy 8 Core Analysis 6 Recoil Reduction 6 Kinecelleration 40 Authchip Count 1 Item Schematics ----------------- Med. Matter Pod | -9/Materials | Extracted Particle Cannon | -9/Materials | Extracted Lgt. Ion Engine | -9/Materials | Extracted Imp. Ion Engine | -9/Materials | Extracted Imp. Hover Unit | -9/Materials | Extracted Weapon Cycler | -7/Factory | Extracted Adv. Targeting Computer | -7/Factory | Extracted Robot Schematics ------------------ None Fabricated ------------ Nothing Repaired ---------- Tractor Beam | 4% | -10/Materials ECM Suite | 40% | -10/Materials Lgt. Treads | 70% | -10/Materials Lgt. Treads | 72% | -10/Materials Studied --------- Aluminum Leg | -9/Materials | Hacked Ion Engine | -9/Materials | Hacked Hvy. Hammer | -9/Materials | Hacked Gauss Rifle | -8/Materials | Hacked Nuclear Core | -7/Factory | Hacked Alien Tech Used ----------------- None Achievements -------------- 20k Club Achiever Backstab Below Just Browsing No Signal Prison Break Project G-00 Respectable Loadout Revising The Future Revolutionary Research Total Silence Challenges ------------ None Game ------ Seed ShockboltRocketCycler Manual? 0 Play Time 02:40:41 Cumulative 32.9 hours Start 2025.12.31 @ 22:11:23 End 2026.01.01 @ 01:05:46 Sessions 1 Manual Loads 0 Difficulty Rogue Special Mode None Game No. 29 Rogue 29 Adventurer 0 Explorer 0 Win Type - Total 0 Types 0/0/0/0/0/0/0/0/0/0 Lore% 30 Gallery% 27 Achievement% 26 Wizard Run 0 Options --------- Layout 1 ASCII 0 Keyboard 0 Movement Numpad Keybinds 0 Fullscreen 1 Font 24/Smallcaps Map View 50x40 Zoom Use 0% Tactical HUD 1 Map Filters NONE Filters NONE Steam 1 RUN: 073e1472-4b2e-49a7-8e6b-a50bdf10589d